bitfinex/quotes_ETHUSD_20240715
["timestamp","ask_amount","ask_price","bid_price","bid_amount"]
[1721014572244,0.5092503,3336.5,3336.0,7.35]
[1721014572753,0.5275833,3336.5,3336.0,7.35]
[1721014573245,2.6976,3336.3,3336.0,7.35]
[1721014573439,2.6976,3336.3,3335.4,2.6983]
[1721014573440,2.3446,3336.2,3335.4,2.6983]
[1721014573751,0.018333,3336.1,3335.4,2.6983]
[1721014573951,0.018333,3336.1,3335.0,7.35]
[1721014573952,0.5060613,3336.0,3335.5,2.69823]
[1721014574183,0.5060613,3336.0,3335.6,2.69815]
[1721014574343,0.5092503,3336.5,3335.8,5.39591]
[1721014574678,3.5092503,3336.5,3335.8,5.39591]
[1721014575245,3.5092503,3336.5,3335.8,2.69793]
[1721014575961,2.69754,3336.4,3335.7,2.69807]
[1721014576172,2.69754,3336.4,3335.4,2.6983]
[1721014576173,7.59635703,3336.3,3335.4,2.6983]
[1721014576375,7.57802403,3336.3,3335.4,2.6983]
[1721014576579,7.57802403,3336.3,3335.5,2.69824]
[1721014576940,7.57802403,3336.3,3335.6,0.08139135]
[1721014577159,1.07847243,3336.2,3335.6,0.08139135]
[1721014577372,0.018333,3336.1,3335.6,0.08139135]
[1721014577674,3.0,3336.1,3335.3,2.6984]
[1721014577875,3.0,3336.1,3335.7,0.08137966]
[1721014577876,0.018333,3336.1,3335.7,0.08137966]
[1721014578169,3.0,3336.1,3335.4,2.69831]
[1721014578374,2.15682497,3336.0,3335.8,0.08136796]
[1721014578675,2.15682497,3336.0,3335.9,0.08135627]
[1721014578842,2.15682497,3336.0,3335.4,2.69831]
[1721014579359,2.15682497,3336.0,3335.5,0.08140305]
[1721014580147,4.85466497,3336.0,3335.5,0.08140305]
[1721014580350,2.18448907,3335.9,3335.5,0.08140305]
[1721014580620,2.18448907,3335.9,3335.2,2.69848]
[1721014580750,2.18448907,3335.9,3335.6,0.08153485]
[1721014581151,2.18448907,3335.9,3335.2,2.69848]
[1721014581393,4.50518907,3335.9,3335.7,0.08152316]
[1721014581550,4.50518907,3335.9,3335.0,10.04864]
[1721014581551,1.02030291,3335.8,3335.0,10.04864]
[1721014581909,2.69819,3335.6,3335.0,7.35]
[1721014582054,2.3458,3335.3,3335.0,7.35]
[1721014582254,0.60828231,3335.2,3334.5,10.04905]
[1721014582482,0.018333,3335.1,3334.5,10.04905]
[1721014583050,0.018333,3335.1,3334.5,7.35]
[1721014583551,2.69871,3335.0,3334.5,7.35]
[1721014583776,0.018333,3334.9,3334.5,7.35]
[1721014583978,0.60238153,3334.9,3334.5,7.35]
[1721014584348,0.60828231,3335.2,3334.5,7.35]
[1721014584547,2.3458,3335.3,3334.7,2.69882]
[1721014584771,2.3458,3335.3,3334.6,2.69895]
[1721014585308,5.0442,3335.3,3334.5,10.04905]
[1721014585512,5.0442,3335.3,3334.6,2.69896]
[1721014588582,2.3458,3335.3,3334.6,2.69896]
[1721014588799,4.140205,3335.3,3334.6,2.69896]
[1721014589312,6.838625,3335.3,3334.6,2.69896]
[1721014589529,6.838625,3335.3,3334.4,2.69908]
[1721014589676,2.69858,3335.1,3334.3,2.69915]
[1721014589874,2.69876,3334.9,3334.0,2.69939]
[1721014590105,2.717093,3334.9,3334.0,2.69939]
[1721014591307,2.69876,3334.9,3334.0,2.69939]
[1721014591607,2.717093,3334.9,3334.1,0.07932923]
[1721014591796,0.5415673,3334.8,3334.1,0.07932923]
[1721014592709,0.5415673,3334.8,3334.3,2.69915]
[1721014592921,0.31403798,3334.8,3334.3,2.69915]
[1721014593079,0.31403798,3334.8,3334.4,0.07929411]
[1721014593278,0.31403798,3334.8,3334.5,2.699]
[1721014593899,0.31403798,3334.8,3334.6,0.07927071]
[1721014595486,0.31403798,3334.8,3334.2,2.69928]
[1721014595721,0.3031021,3334.7,3334.2,2.69928]
[1721014596052,0.3031021,3334.7,3334.3,2.6992]
[1721014596312,0.31403798,3334.8,3334.3,2.6992]
[1721014597720,0.31403798,3334.8,3334.5,2.69903]
[1721014601794,0.31403798,3334.8,3334.3,2.6992]
[1721014601998,0.31403798,3334.8,3334.4,2.69912]
[1721014602199,0.31403798,3334.8,3332.5,0.62682519]
[1721014602200,2.2749,3334.4,3332.5,0.62682519]
[1721014602510,2.2749,3334.4,3332.3,10.55803779]
[1721014602511,2.2749,3333.5,3332.6,2.760528]
[1721014602714,2.2749,3333.5,3332.9,2.70034]
[1721014603838,2.2749,3333.5,3333.0,2.70026]
[1721014604898,2.2749,3333.5,3332.8,2.7004]
[1721014605398,4.993123,3333.5,3332.6,2.70054]
[1721014605599,5.7624143,3333.5,3332.6,2.70054]
[1721014605801,5.7624143,3333.5,3332.7,2.70051]
[1721014606718,5.7624143,3333.5,3332.8,0.06649228]
[1721014607327,2.69966,3333.8,3332.8,2.37929774]
[1721014607528,2.69946,3334.0,3333.1,2.70014]
[1721014607727,2.69946,3334.0,3333.3,2.70002]
[1721014608228,0.3141084,3333.9,3333.4,0.06672332]
[1721014608850,0.61546524,3333.9,3333.4,0.06672332]
[1721014611833,0.61546524,3333.9,3333.0,2.70026]
[1721014612012,0.61546524,3333.9,3333.5,0.06671161]
[1721014612219,0.61546524,3333.9,3333.0,2.70026]
[1721014612526,0.61546524,3333.9,3333.1,2.70016]
[1721014612731,0.3141084,3333.9,3333.6,2.69978]
[1721014613128,0.3141084,3333.9,3333.7,0.06693162]
[1721014613658,3.0136784,3333.9,3333.7,0.06693162]
[1721014614021,3.0136784,3333.9,3333.1,2.70017]
[1721014614225,2.4495,3333.8,3333.1,2.70017]
[1721014614442,3.26759514,3333.8,3333.2,0.06699018]
[1721014614951,5.96722514,3333.8,3333.2,0.06699018]
[1721014615152,5.96722514,3333.8,3332.8,2.70042]
[1721014615153,2.69971,3333.7,3332.6,5.70057]
[1721014615355,2.69981,3333.6,3333.3,0.06697846]
[1721014615653,2.69971,3333.7,3333.3,0.06697846]
[1721014615869,0.89809535,3333.6,3332.8,2.70037]
[1721014616232,3.59788535,3333.6,3332.9,0.06702531]
[1721014617728,0.018333,3333.5,3332.9,0.06702531]
[1721014617934,2.69995,3333.4,3332.9,0.06702531]
[1721014618248,3.59787535,3333.6,3332.8,2.70035]
[1721014618459,2.69978,3333.6,3332.8,2.70035]
[1721014618761,2.69978,3333.6,3332.9,2.76733936]
[1721014618940,5.14914,3333.8,3332.9,2.76733936]
[1721014619122,5.14914,3333.8,3333.1,2.70018]
[1721014619326,0.81627284,3333.7,3333.1,2.70018]
[1721014619528,0.81627284,3333.7,3333.2,0.06699018]
[1721014619773,2.4495,3333.8,3333.2,2.76709018]
[1721014619933,0.3141084,3333.9,3333.2,2.76709018]
[1721014620136,0.3141084,3333.9,3333.4,2.69994]
[1721014620463,0.3141084,3333.9,3333.5,0.06695504]
[1721014620829,0.3141084,3333.9,3333.3,2.70002]
[1721014621031,0.86493724,3333.9,3333.6,0.06694333]
[1721014621332,0.86493724,3333.9,3333.7,0.06693162]
[1721014621542,0.3141084,3333.9,3333.7,0.06693162]
[1721014621766,0.3141084,3333.9,3333.3,2.70001]
[1721014621926,0.3141084,3333.9,3333.8,0.06691992]
[1721014622126,0.3141084,3333.9,3333.3,2.70001]
[1721014622577,0.3141084,3333.9,3333.4,2.69993]
[1721014622753,0.3141084,3333.9,3333.6,2.69972]
[1721014623143,0.3141084,3333.9,3333.7,0.06682981]
[1721014624872,0.3141084,3333.9,3333.7,2.76651981]
[1721014625258,0.3141084,3333.9,3333.7,0.06682981]
[1721014625574,0.3141084,3333.9,3333.5,2.69985]
[1721014625755,0.3141084,3333.9,3333.8,0.06674826]
[1721014625945,0.3141084,3333.9,3333.5,2.69985]
[1721014626141,0.3141084,3333.9,3333.8,0.06674826]
[1721014626340,0.3141084,3333.9,3333.5,2.69985]
[1721014626546,0.3141084,3333.9,3333.8,0.06674826]
[1721014626748,0.59499924,3333.9,3333.3,2.70001]
[1721014626978,0.3141084,3333.9,3333.8,0.06674826]
[1721014627143,0.3141084,3333.9,3333.3,2.70001]
[1721014627447,0.3141084,3333.9,3333.4,0.06682702]
[1721014629071,0.3324414,3333.9,3333.4,0.06682702]
[1721014629283,1.03915882,3333.8,3333.4,0.06682702]
[1721014629497,0.40711602,3333.7,3333.1,10.05017]
[1721014629697,2.429033,3333.6,3333.1,10.05017]
[1721014629976,1.05752368,3333.5,3333.2,0.06686841]
[1721014630282,1.96667365,3333.4,3333.2,0.06686841]
[1721014630570,1.03933443,3333.3,3333.2,0.06686841]
[1721014631546,1.03936582,3333.3,3333.2,0.06686841]
[1721014631976,1.05769882,3333.3,3332.8,2.70037]
[1721014632156,0.92748297,3333.4,3333.2,0.06699616]
[1721014632351,0.92748297,3333.4,3332.8,2.70037]
[1721014632352,1.03931575,3333.3,3332.8,2.70037]
[1721014632679,1.03934248,3333.2,3332.8,2.70037]
[1721014632876,0.92748297,3333.4,3332.8,2.70037]
[1721014633078,1.0393596,3333.3,3332.8,2.70037]
[1721014633248,0.3141084,3333.9,3332.9,2.474]
[1721014633589,0.3141084,3333.9,3333.8,5.39924]
[1721014634370,9.9,3334.7,3334.1,2.69934]
[1721014634545,1.03890011,3334.6,3334.1,0.0599842]
[1721014634750,1.87814046,3335.6,3333.9,2.474]
[1721014634751,1.24873088,3335.9,3334.3,5.34321]
[1721014634973,1.03861811,3335.7,3335.4,2.69832]
[1721014635156,9.9,3335.9,3335.7,2.69808]
[1721014635352,0.31398869,3336.0,3335.7,2.69808]
[1721014636766,0.31398869,3336.0,3335.8,0.06647838]
[1721014637161,0.31398869,3336.0,3335.7,2.69808]
[1721014637570,0.31398869,3336.0,3335.8,0.06647838]
[1721014637878,0.31398869,3336.0,3335.4,2.69827]
[1721014638061,0.61515056,3336.0,3335.5,0.066334]
[1721014638689,2.18841403,3337.5,3336.5,4.96833]
[1721014638907,1.25018257,3338.0,3337.6,2.69654]
[1721014639181,4.25790822,3339.3,3338.3,2.69597]
[1721014639387,2.69533,3339.1,3338.4,2.69585]
[1721014639576,2.69533,3339.1,3338.4,0.06581375]
[1721014639769,2.69533,3339.1,3338.2,2.69604]
[1721014639972,2.69533,3339.1,3338.5,0.06580207]
[1721014640281,2.69533,3339.1,3338.6,0.0657904]
[1721014640580,2.69558,3338.8,3337.7,2.69643]
[1721014640758,0.018333,3338.7,3337.7,2.69643]
[1721014640947,0.018333,3338.7,3337.5,2.69657]
[1721014640948,3.018333,3338.7,3337.5,2.69657]
[1721014641250,2.69591,3338.4,3337.2,2.69679]
[1721014641450,0.018333,3338.3,3337.2,2.69679]
[1721014641651,0.5410093,3338.2,3337.2,2.69679]
[1721014642478,0.5593423,3338.2,3337.2,2.69679]
[1721014642983,3.2554223,3338.2,3337.2,2.69679]
[1721014643186,3.2554223,3338.2,3336.4,2.6975]
[1721014643187,2.4015,3338.0,3337.0,2.69702]
[1721014643482,0.88402523,3337.9,3337.0,2.69702]
[1721014643684,3.88402523,3337.9,3337.0,2.69702]
[1721014644862,3.88402523,3337.9,3337.1,2.69693]
[1721014645084,3.86569223,3337.9,3337.1,2.69693]
[1721014645579,3.86569223,3337.9,3335.5,0.15165801]
[1721014645580,2.3279,3337.3,3335.2,2.69842]
[1721014645777,2.69714,3336.9,3335.8,2.69797]
[1721014646111,0.018333,3337.2,3335.7,2.69808]
[1721014646112,2.69729,3336.7,3335.7,2.69808]
[1721014646296,2.69729,3336.7,3334.1,2.69937]
[1721014646297,2.3279,3336.5,3333.7,3.32215442]
[1721014646499,0.018333,3336.4,3334.3,2.6992]
[1721014646656,0.018333,3336.4,3334.8,2.69879]
[1721014646657,2.69815,3335.7,3334.8,2.69879]
[1721014646860,2.69815,3335.7,3334.6,2.69897]
[1721014647103,2.69815,3335.7,3334.7,2.69887]
[1721014647256,2.69834,3335.4,3333.7,2.69964]
[1721014647467,2.3279,3335.6,3333.3,0.05997686]
[1721014647468,2.69849,3335.2,3333.3,0.05997686]
[1721014647708,2.716823,3335.2,3334.1,2.69937]
[1721014648001,2.716823,3335.2,3333.9,2.69953]
[1721014648002,2.69859,3335.1,3333.9,2.69953]
[1721014648217,5.69859,3335.1,3333.9,2.69953]
[1721014648365,2.3279,3334.0,3332.5,2.70062]
[1721014648565,0.018333,3333.9,3332.5,2.70062]
[1721014648892,2.3279,3334.0,3333.2,2.70003]
[1721014649062,2.3279,3334.0,3333.3,0.04657396]
[1721014649267,0.018333,3333.9,3333.3,0.04657396]
[1721014649783,0.8567613,3333.9,3333.3,0.04657396]
[1721014649994,0.8567613,3333.9,3333.1,2.70013]
[1721014650166,0.8567613,3333.9,3333.4,0.04656225]
[1721014650359,0.8567613,3333.9,3333.1,2.70013]
[1721014650558,0.8567613,3333.9,3333.5,0.04655054]
[1721014650798,0.8567613,3333.9,3333.1,2.70013]
[1721014651108,0.60857943,3333.8,3333.1,2.70013]
[1721014651263,2.718053,3333.7,3332.7,5.40088]
[1721014651796,2.718053,3333.7,3332.8,0.0473536]
[1721014652310,2.69978,3333.6,3332.8,2.7477836]
[1721014653107,2.3279,3334.0,3332.8,2.7477736]
[1721014653283,3.130619,3334.0,3332.8,2.7477736]
[1721014653486,3.0,3333.9,3333.1,2.70018]
[1721014653693,3.0,3333.9,3333.2,0.04733773]
[1721014654076,2.69988,3333.5,3332.5,2.70059]
[1721014654476,2.69988,3333.5,3332.6,0.04586625]
[1721014654723,0.5417913,3333.4,3332.6,0.04586625]
[1721014655406,0.018333,3333.3,3332.6,0.04586625]
[1721014655580,2.6997,3333.7,3332.6,0.04586625]
[1721014655774,2.6997,3333.7,3332.2,0.06001229]
[1721014655775,2.6997,3333.7,3332.3,0.55]
[1721014655976,2.6997,3333.7,3332.8,2.70036]
[1721014656293,3.558047,3333.6,3332.9,0.04583111]
[1721014656605,3.558047,3333.6,3332.6,2.70058]
[1721014656821,0.839924,3333.6,3333.0,0.04581939]
[1721014657131,0.839924,3333.6,3332.7,5.40093]
[1721014657613,3.539704,3333.6,3332.8,2.74627282]
[1721014657822,0.3539704,3333.5,3332.8,2.74627282]
[1721014658045,0.3539704,3333.5,3332.8,0.04584282]
[1721014658325,2.70035,3332.9,3332.8,0.04584282]
[1721014658493,2.70057,3332.7,3331.7,2.70131]
[1721014658824,2.4764,3332.5,3331.8,0.04349399]
[1721014659185,0.018333,3332.4,3331.8,0.04349399]
[1721014662602,0.31405586,3332.3,3331.8,0.04349399]
[1721014662822,0.018333,3332.2,3331.7,2.70131]
[1721014663919,0.31405586,3332.3,3331.7,2.70131]
[1721014664310,0.018333,3332.2,3331.7,2.70131]
[1721014664524,0.018333,3332.2,3331.5,2.70148]
[1721014664720,0.018333,3332.2,3331.6,0.04232414]
[1721014665312,0.31405586,3332.3,3331.6,2.74372414]
[1721014665916,0.018333,3332.2,3331.6,2.74372414]
[1721014666899,0.30331589,3332.2,3331.6,0.04232414]
[1721014667126,2.70111,3332.0,3331.1,2.7018]
[1721014667327,2.70111,3332.0,3331.2,0.04238295]
[1721014667725,3.01496586,3332.3,3331.4,2.7015]
[1721014667905,3.01496586,3332.3,3331.5,0.04234777]
[1721014668105,0.57157359,3332.2,3331.5,0.04234777]
[1721014668547,0.57157359,3332.2,3331.5,2.74382777]
[1721014668724,3.01496586,3332.3,3331.5,2.74382777]
[1721014668725,0.31405586,3332.3,3331.5,2.74382777]
[1721014669802,0.31405586,3332.3,3331.5,0.04234777]
[1721014669803,2.70093,3332.2,3331.5,0.04234777]
[1721014670037,0.23747158,3330.0,3329.9,2.7027]
[1721014670333,2.70145,3331.6,3330.9,2.70196]
[1721014670924,3.0,3331.8,3330.8,2.70199]
[1721014671240,2.62588283,3331.5,3330.2,7.35]
[1721014671405,2.62588283,3331.5,3329.8,2.70284]
[1721014671604,2.62588283,3331.5,3329.9,0.06004059]
[1721014671933,5.32742283,3331.5,3330.0,2.70269]
[1721014672132,5.32742283,3331.5,3330.7,2.7021]
[1721014672317,6.1047018,3331.5,3330.7,2.7021]
[1721014672723,2.70158,3331.4,3330.7,2.7021]
[1721014673301,2.70158,3331.4,3330.6,2.7022]
[1721014673723,2.70158,3331.4,3330.6,5.40435]
[1721014674327,2.70158,3331.4,3330.6,2.70215]
[1721014675603,2.70158,3331.4,3330.1,3.0]
[1721014675604,2.70166,3331.3,3330.5,2.70229]
[1721014676509,2.70166,3331.3,3330.6,2.70219]
[1721014678554,2.70173,3331.2,3330.5,2.70228]
[1721014678907,2.70161,3331.4,3330.5,2.70228]
[1721014679350,3.0,3331.3,3330.5,2.70228]
[1721014679636,5.70165,3331.3,3330.5,2.70228]
[1721014679941,5.70165,3331.3,3330.6,2.7022]
[1721014680439,3.0,3331.3,3330.6,2.7022]
[1721014680650,3.0,3331.4,3330.6,2.7022]
[1721014680811,3.0,3331.4,3330.7,2.7021]
[1721014681008,2.62588283,3331.5,3330.8,2.70197]
[1721014681343,2.62588283,3331.5,3331.0,2.70181]
[1721014681653,2.62588283,3331.5,3330.8,2.70197]
[1721014681850,5.32737283,3331.5,3331.1,0.03600315]
[1721014682056,5.32737283,3331.5,3330.8,2.70197]
[1721014682355,5.32737283,3331.5,3330.7,2.70207]
[1721014682552,2.70156,3331.4,3330.6,2.70219]
[1721014682755,2.70156,3331.4,3330.8,0.03603833]
[1721014682917,2.70165,3331.3,3330.6,2.70219]
[1721014683123,2.70165,3331.3,3330.7,0.03605006]
[1721014683326,0.018333,3331.2,3330.7,0.03605006]
[1721014684148,2.70165,3331.3,3330.7,0.03605006]
[1721014685053,5.32737283,3331.5,3330.7,0.03605006]
[1721014685435,5.32737283,3331.5,3330.8,2.70205]
[1721014685643,5.32737283,3331.5,3330.8,2.73808833]
[1721014685845,0.018333,3331.4,3330.8,0.03603833]
[1721014686238,0.018333,3331.4,3330.6,2.70219]
[1721014686437,0.018333,3331.4,3330.9,0.03602661]
[1721014686749,2.70166,3331.3,3331.0,0.03601488]
[1721014686923,2.70166,3331.3,3330.6,2.70219]
[1721014687134,2.70166,3331.3,3330.7,0.03605006]
[1721014687556,8.02892283,3331.5,3330.7,0.03605006]
[1721014687750,2.62588283,3331.5,3330.7,0.03605006]
[1721014688054,2.62588283,3331.5,3330.8,2.702]
[1721014688259,2.3118,3331.5,3330.8,2.702]
[1721014688425,2.3118,3331.5,3330.9,0.03602661]
[1721014688632,1.03996875,3331.4,3330.9,0.03602661]
[1721014688934,2.3118,3331.5,3330.9,0.03602661]
[1721014689133,1.03994376,3331.4,3330.9,0.03602661]
[1721014689355,2.3118,3331.5,3330.9,0.03602661]
[1721014689667,1.03994137,3331.4,3330.9,0.03602661]
[1721014689872,1.03994137,3331.3,3330.9,0.03602661]
[1721014690027,2.3118,3331.5,3330.9,0.03602661]
[1721014690348,1.03997042,3331.4,3330.9,0.03602661]
[1721014690556,1.03997042,3331.3,3330.9,0.03602661]
[1721014690758,1.03997042,3331.3,3330.6,2.70219]
[1721014690957,3.74163042,3331.3,3331.0,0.03600498]
[1721014691209,1.03997042,3331.2,3330.6,2.70219]
[1721014691473,1.04007012,3331.1,3330.6,2.70219]
[1721014691767,2.70166,3331.3,3330.6,2.70219]
[1721014691959,1.04007908,3331.2,3330.6,2.70219]
[1721014692158,1.04007908,3331.1,3330.6,2.70219]
[1721014692358,2.70166,3331.3,3330.6,2.70219]
[1721014692675,1.04001877,3331.2,3330.6,2.70219]
[1721014692829,1.04001877,3331.1,3330.6,2.70219]
[1721014693026,1.04001877,3331.2,3330.6,2.70219]
[1721014693261,1.04003989,3331.1,3330.6,2.70219]
[1721014693567,2.70166,3331.3,3330.6,2.70219]
[1721014693772,1.04003412,3331.2,3330.6,2.70219]
[1721014693931,1.04003412,3331.1,3330.6,2.70219]
[1721014694130,1.04003412,3331.2,3330.6,2.70219]
[1721014694335,2.70166,3331.3,3330.6,2.70219]
[1721014694730,1.04000388,3331.2,3330.6,2.70219]
[1721014694933,2.70166,3331.3,3330.6,2.70219]
[1721014695234,1.0399984,3331.2,3330.6,2.70219]
[1721014695427,2.70166,3331.3,3330.6,2.70219]
[1721014695632,1.03997107,3331.2,3330.6,2.70219]
[1721014695830,2.70166,3331.3,3330.6,2.70219]
[1721014696075,1.03997836,3331.2,3330.6,2.70219]
[1721014696877,1.03997836,3331.2,3330.7,0.03609962]
[1721014697859,2.3118,3331.5,3330.8,2.70199]
[1721014698196,1.03989599,3331.4,3330.9,0.03607616]
[1721014698484,0.3141032,3332.0,3331.3,2.70164]
[1721014698713,1.03978835,3331.9,3331.3,2.70164]
[1721014698854,1.03978835,3331.8,3331.4,0.03595015]
[1721014699057,2.70117,3331.9,3331.4,0.03595015]
[1721014699275,1.41388419,3331.8,3331.4,0.03595015]
[1721014699576,1.03978835,3331.7,3331.5,0.03593842]
[1721014699885,1.03978835,3331.7,3331.1,2.70179]
[1721014700270,1.03978835,3331.7,3331.2,0.03595378]
[1721014700454,5.09862,3332.1,3331.2,0.03595378]
[1721014700455,6.74094835,3331.9,3331.2,0.03595378]
[1721014700653,1.71388319,3331.8,3331.2,0.03595378]
[1721014700975,1.03978835,3331.7,3331.2,0.03595378]
[1721014701198,5.70116,3331.9,3331.2,0.03595378]
[1721014701357,1.03983353,3331.6,3331.2,0.03595378]
[1721014701681,1.03985664,3331.5,3331.2,0.03595378]
[1721014701881,1.03985664,3331.4,3331.2,0.03595378]
[1721014702082,1.03985664,3331.3,3331.2,0.03595378]
[1721014702288,1.05818964,3331.7,3331.2,0.03595378]
[1721014702478,1.03985664,3331.6,3331.2,0.03595378]
[1721014702858,2.70124,3331.8,3331.2,0.03595378]
[1721014702859,1.03985664,3331.7,3331.2,0.03595378]
[1721014704378,2.70124,3331.8,3331.2,0.03595378]
[1721014704557,1.03988499,3331.7,3331.2,0.03595378]
[1721014704878,1.03988499,3331.6,3331.2,0.03595378]
[1721014705054,1.03988499,3331.5,3331.2,0.03595378]
[1721014705374,1.03988499,3331.4,3331.0,2.70188]
[1721014705563,1.03988499,3331.6,3331.1,0.03588624]
[1721014705763,1.03988499,3331.5,3331.1,0.03588624]
[1721014705967,1.03988499,3331.6,3331.1,0.03588624]
[1721014706145,1.03988499,3331.6,3331.1,2.73767624]
[1721014706684,1.03988499,3331.5,3331.1,2.73767624]
[1721014706873,1.03988499,3331.8,3331.1,2.73767624]
[1721014707183,1.03988499,3331.7,3331.1,2.73767624]
[1721014707372,4.24978675,3331.9,3331.1,2.73767624]
[1721014707373,1.03988499,3331.6,3331.1,2.73767624]
[1721014707550,4.24978675,3331.9,3331.2,2.70171]
[1721014707755,1.03982258,3331.8,3331.3,0.03589251]
[1721014708082,1.03982258,3331.7,3331.2,2.70171]
[1721014708244,2.28960933,3331.8,3331.2,2.70171]
[1721014708449,1.03982258,3331.7,3331.3,0.03586477]
[1721014708673,1.03982258,3331.7,3331.2,2.70171]
[1721014708881,1.03982258,3331.8,3331.2,2.70171]
[1721014709085,2.28960933,3331.8,3331.3,0.03586477]
[1721014709384,1.03982258,3331.7,3331.5,2.70147]
[1721014709548,1.24978675,3332.1,3331.5,2.70147]
[1721014709549,1.24978675,3332.1,3331.6,2.73716959]
[1721014709752,1.03973184,3332.0,3331.7,2.70131]
[1721014709950,1.03973184,3331.9,3331.7,2.70131]
[1721014710157,1.24978675,3332.1,3331.8,0.03580615]
[1721014710347,2.2895206,3332.0,3331.6,2.7014]
[1721014710552,1.03973385,3331.9,3331.7,0.03581787]
[1721014710803,1.24978675,3332.0,3331.7,0.03581787]
[1721014711002,1.03973759,3331.9,3331.7,0.03581787]
[1721014711166,1.03973759,3331.8,3331.7,0.03581787]
[1721014711358,1.03972456,3331.8,3331.7,0.03581787]
[1721014711873,1.03972456,3331.8,3331.7,2.73713787]
[1721014712263,1.24978675,3332.2,3331.8,2.70118]
[1721014712464,1.03962565,3332.1,3331.8,2.70118]
[1721014712775,1.24978675,3332.4,3331.9,0.03579443]
[1721014712776,1.03962565,3332.0,3331.9,0.03579443]
[1721014712980,2.2894124,3332.2,3331.6,5.40278]
[1721014713177,1.03962565,3332.1,3331.7,0.03581787]
[1721014713373,1.42531799,3332.1,3331.7,0.03581787]
[1721014713674,1.03962565,3332.0,3331.5,2.68727787]
[1721014714073,1.63547909,3332.1,3331.6,0.03463566]
[1721014714277,1.05805526,3332.0,3331.6,0.03463566]
[1721014714573,1.03972226,3331.9,3331.3,2.7016]
[1721014714773,1.57734539,3331.9,3331.4,0.0344907]
[1721014714973,1.03972226,3331.8,3331.4,0.0344907]
[1721014715489,3.95117675,3331.7,3330.6,7.35]
[1721014715658,2.28950901,3331.6,3330.3,2.70242]
[1721014715855,2.70163,3331.4,3330.6,2.73677028]
[1721014716085,3.05877091,3331.3,3330.6,2.73677028]
[1721014716301,1.03972226,3331.2,3330.6,2.73677028]
[1721014716899,2.28950901,3331.2,3330.6,2.73677028]
[1721014717099,1.03972226,3331.1,3330.6,2.73677028]
[1721014717407,2.01904865,3331.3,3330.6,2.73677028]
[1721014717594,1.04000945,3331.2,3330.6,2.73677028]
[1721014717894,1.04000945,3331.1,3330.6,2.73677028]
[1721014718104,2.01904865,3331.3,3330.6,2.73677028]
[1721014718304,2.76184872,3331.2,3330.6,2.73677028]
[1721014718499,1.0399941,3331.1,3330.6,2.73677028]
[1721014718806,1.0399941,3331.1,3330.6,2.68677028]
[1721014720625,1.72185462,3331.2,3330.6,2.68677028]
[1721014720774,1.04003029,3331.0,3330.6,2.68677028]
[1721014720979,1.72596284,3331.2,3330.6,2.68677028]
[1721014721288,1.21262706,3331.1,3330.6,0.03461028]
[1721014721610,1.21262706,3331.1,3330.2,2.70253]
[1721014721611,1.25389497,3330.8,3330.2,2.70253]
[1721014721908,1.05836378,3330.7,3330.3,0.03368758]
[1721014722214,1.05836378,3330.7,3330.2,2.70253]
[1721014722215,1.04003078,3330.6,3330.2,2.70253]
[1721014722517,0.018333,3330.7,3330.3,0.03368758]
[1721014722699,1.04018006,3330.6,3330.3,0.03368758]
[1721014722904,0.018333,3330.7,3330.2,2.70253]
[1721014723106,0.018333,3330.8,3330.4,0.03367584]
[1721014723332,1.04016436,3330.7,3330.3,0.03368758]
[1721014723488,0.80092385,3330.8,3330.5,0.03366411]
[1721014723687,1.05850012,3330.7,3330.4,0.03367584]
[1721014723902,0.018333,3330.7,3330.6,0.03365238]
[1721014724100,1.05851343,3330.7,3330.5,0.03366411]
[1721014724419,3.3001151,3330.7,3330.6,0.03365238]
[1721014724621,2.70224,3330.6,3329.9,7.35]
[1721014724784,1.04026719,3330.5,3329.8,2.70285]
[1721014724984,1.04026719,3330.4,3329.8,2.70285]
[1721014725204,3.9554183,3330.6,3329.9,2.70277]
[1721014725404,1.04021861,3330.5,3329.9,2.70277]
[1721014725598,2.03576915,3330.8,3330.1,2.70255]
[1721014725801,1.2531783,3331.0,3330.3,2.70245]
[1721014725999,1.04007986,3330.9,3330.3,2.70245]
[1721014726202,1.04007986,3330.8,3330.3,2.70245]
[1721014726410,2.29325816,3330.9,3330.3,2.70245]
[1721014726610,1.04010844,3330.8,3330.3,2.70245]
[1721014726803,1.2531783,3330.9,3330.3,2.70245]
[1721014727002,1.04011977,3330.8,3330.3,2.70245]
[1721014727311,4.2531783,3330.9,3330.3,2.70245]
[1721014727529,1.04011019,3330.8,3330.4,2.7023]
[1721014727714,3.9549083,3331.2,3330.4,2.7023]
[1721014728012,2.29321643,3331.1,3330.4,2.7023]
[1721014728201,1.04003813,3331.0,3330.4,2.7023]
[1721014728719,2.29321643,3331.0,3330.4,2.7023]
[1721014728920,1.04003813,3330.9,3330.4,2.7023]
[1721014729702,1.04003813,3330.9,3329.7,7.35]
[1721014729905,0.22932164,3330.8,3330.1,2.70261]
[1721014730114,2.70214,3330.7,3329.9,2.70278]
[1721014730305,2.70214,3330.7,3330.2,0.03399662]
[1721014730509,2.70226,3330.6,3329.8,2.70284]
[1721014730704,2.70226,3330.6,3330.3,0.03398489]
[1721014730909,3.39094299,3330.6,3329.8,2.70284]
[1721014731403,0.68868299,3330.6,3329.9,2.73680183]
[1721014731597,2.93139164,3330.8,3329.9,2.73680183]
[1721014731598,2.70217,3330.7,3329.9,2.73680183]
[1721014732207,2.4245,3330.6,3329.9,0.03403183]
[1721014732408,2.4245,3330.6,3329.9,2.70272]
[1721014732609,2.73864119,3330.6,3330.0,2.73668966]
[1721014732926,0.31414119,3330.6,3330.1,2.76266327]
[1721014733128,0.31414119,3330.6,3330.3,2.70242]
[1721014733496,0.31414119,3330.6,3330.4,0.03401281]
[1721014734336,0.31414119,3330.6,3330.4,2.73638281]
[1721014735626,0.31414119,3330.6,3330.4,0.03401281]
[1721014735829,0.31414119,3330.6,3330.3,3.25244]
[1721014736210,0.31414119,3330.6,3330.4,0.03399695]
[1721014736621,0.31414119,3330.6,3330.1,2.70259]
[1721014737030,0.31414119,3330.6,3330.2,0.03402041]
[1721014737498,0.61576331,3330.6,3330.2,0.03402041]
[1721014737730,0.31414119,3330.6,3330.2,0.03402041]
[1721014737901,0.31414119,3330.6,3329.9,2.70274]